Cogmind - Beta 14 @@@ ROGUE MODE // 2025.05.05 @ 14:44:15 Player: Rotpup_ Result: Destroyed by G-34 Mercenary with Small Laser Performance ------------- Evolutions (1) 500 Regions Visited (3) 600 Robots Destroyed (35) 175 Value Destroyed (1019) 1019 Prototype IDs (2) 40 Alien Tech Used (0) 0 Bonus (32) 32 TOTAL SCORE: 2366 Bonus ------- High Alert Combat Kills 32 Cogmind --------- Core Integrity 0/400 Matter 277/300 Energy 125/125 System Corruption 0% Temperature Cool (6) Movement Walking (120) Location -9/Materials Parts ------- > --- POWER (1) -------- Light Ion Engine > --- PROPULSION (4) --- Aluminum Leg Aluminum Leg Aluminum Leg > --- UTILITY (2) ------ Medium Storage Unit Signal Interpreter > --- WEAPON (2) ------- (None) > --- INVENTORY (10) --- Ion Engine Light Treads Small Storage Unit Datajack Peak State ------------ > --- POWER ------------ Light Nuclear Core > --- PROPULSION ------- Aluminum Leg Aluminum Leg Aluminum Leg > --- UTILITY ---------- Small Storage Unit Signal Interpreter > --- WEAPON ----------- Particle Gun Light Assault Rifle > --- INVENTORY -------- Ion Engine Light Ion Engine Light Ion Engine Light Treads Small Storage Unit Datajack Mining Laser [Rating: 11] Favorites ----------- Power Light Nuclear Core Engine Ion Engine Power Core Light Nuclear Core Propulsion Aluminum Leg Treads Light Treads Leg Aluminum Leg Utility Signal Interpreter Storage Small Storage Unit Processor Signal Interpreter Weapon Light Assault Rifle Energy Gun Particle Gun Ballistic Gun Light Assault Rifle Launcher Rocket Launcher Special Weapon Mining Laser Build | -11 -10 -10 -9 ------- Run | Yrd Mat Min Mat Slots Evolved 2 | . . . 2 Power . | . . . . Propulsion 2 | . . . 2 Utility . | . . . . Weapon . | . . . . Parts Attached 39 | 7 10 5 17 Power 8 | 1 3 1 3 Engine 5 | 1 1 . 3 Core 3 | . 2 1 . Reactor . | . . . . Propulsion 18 | 2 5 3 8 Treads 5 | 2 3 . . Leg 13 | . 2 3 8 Wheel . | . . . . Hover . | . . . . Flight . | . . . . Utility 4 | 2 1 . 1 Device . | . . . . Storage 3 | 2 . . 1 Processor 1 | . 1 . . Hackware . | . . . . Protection . | . . . . Artifact . | . . . . Weapon 9 | 2 1 1 5 Energy Gun 4 | 1 1 1 1 Energy Cannon . | . . . . Ballistic Gun 2 | 1 . . 1 Ballistic Cannon . | . . . . Launcher 2 | . . . 2 Special Weapon 1 | . . . 1 Impact Weapon . | . . . . Slashing Weapon . | . . . . Piercing Weapon . | . . . . Special Melee Weapon . | . . . . Unidentified Prototypes . | . . . . Parts Lost 19 | . 2 1 16 Power 3 | . . . 3 Propulsion 9 | . 1 1 7 Utility . | . . . . Weapon 7 | . 1 . 6 Highest Loss Streak 6 | . 2 1 6 To Critical Strikes . | . . . . Average Slot Usage (%) 91 | . 97 98 79 Engine 5 | . 6 . 7 Core 6 | . 7 14 1 Treads 9 | . 21 1 . Leg 20 | . 5 24 33 Storage 13 | . 14 14 11 Processor 12 | . 13 14 11 Energy Gun 11 | . 13 14 6 Ballistic Gun 11 | . 14 14 7 Peak Build Rating 11 | 7 9 10 11 Average Rating 8 | 4 7 9 8 On Entrance 6 | . 7 9 10 Naked Turns . | . . . . Heaviest Build 22 | 16 16 14 22 Greatest Support 40 | 40 40 20 40 Greatest Overweight (x) 3 | . . 1 3 Average Overweight (x) . | . . . . Largest Inventory Capacity 10 | 8 8 8 10 Average Capacity 8 | 7 8 8 9 Most Carried 8 | 4 8 8 8 Average Carried 5 | 1 4 8 6 Final Capacity 10 | 8 8 8 10 Final Carried 8 | 2 8 8 4 Class Distribution -------------------- 53% | Mutant 46% | Scavenger-Mutant Dominant Class ---------------- Mutant | -10/Materials Scavenger-Mutant | -10/Mines Scavenger-Mutant | -9/Materials Resources | -11 -10 -10 -9 ----------- Run | Yrd Mat Min Mat Matter Collected 728 | 221 162 94 251 Remotely . | . . . . Salvage Created 1360 | 83 280 286 711 Parts 83 | 2 21 23 37 Haulers Intercepted . | . . . . Recyclers Shooed 2 | . . 1 1 Parts Field Recycled . | . . . . Retrieved Matter . | . . . . Parts Self-Destructed . | . . . . Prevented . | . . . . Kills | -11 -10 -10 -9 ------- Run | Yrd Mat Min Mat Combat Hostiles Destroyed 27 | . 5 5 17 Guns 23 | . 5 5 13 AOE 4 | . . . 4 Classes Destroyed 6 | 1 3 1 1 Recycler 4 | 1 . 2 1 Operator 2 | . 2 . . Watcher 2 | . 1 . 1 Swarmer 3 | . . 3 . Grunt 21 | . 5 2 14 Sentry 3 | . . . 3 Best Kill Streak 5 | 1 2 4 5 Combat Bots Only 4 | . 1 3 4 Max Kills in Single Turn 2 | 1 1 1 2 Gunslinging . | . . . . Exploded 2 | . . . 2 Melee . | . . . . Uniques/NPCs Destroyed . | . . . . Combat | -11 -10 -10 -9 -------- Run | Yrd Mat Min Mat Hostile Shots Fired 266 | . 52 28 186 Missed 69 | . 15 7 47 Damage Taken 2401 | . 534 227 1640 Core 527 | . 63 57 407 Absorbed by Shields . | . . . . Core Remaining (%) 76 | 100 . 52 . Volleys Fired 157 | 2 43 22 90 Largest 2 | 2 2 2 2 Hottest 165 | 70 70 85 165 Shots Fired 230 | 4 78 44 104 Gun 224 | 4 78 44 98 Cannon . | . . . . Launcher 5 | . . . 5 Special 1 | . . . 1 Kinetic 114 | 2 39 22 51 Thermal 111 | 2 39 22 48 Explosive 5 | . . . 5 Electromagnetic . | . . . . Robot Hit Streak 12 | 2 9 5 12 Robot Miss Streak 5 | 1 4 5 4 Penetration Max . | . . . . Secondary Targets 1 | . 1 . . Max Gunslinging Chain 1 | . 1 . . Shots Hit Robots 151 | 3 49 23 76 Core Hits 70 | 2 17 13 38 Critical Kills 1 | . . . 1 Critical Parts Destroyed . | . . . . Critical Strikes 6 | . 4 . 2 Burn 5 | . 4 . 1 Destroy 1 | . . . 1 Melee Attacks . | . . . . Impact . | . . . . Slashing . | . . . . Piercing . | . . . . Sneak Attacks . | . . . . Combat Hostiles . | . . . . Follow-up Attacks . | . . . . Damage Inflicted 2242 | 33 503 250 1456 Guns 1778 | 33 503 250 992 Cannons . | . . . . Explosions 460 | . . . 460 Melee . | . . . . Ramming 4 | . . . 4 Kinetic 765 | 8 179 96 482 Thermal 1013 | 25 324 154 510 Explosive 460 | . . . 460 Electromagnetic . | . . . . Impact . | . . . . Slashing . | . . . . Piercing . | . . . . Highest Corruption 1 | . 1 1 . Average Corruption 1 | . 1 1 . Corruption Purged . | . . . . Corruption Blocked . | . . . . Effects 2 | . 1 1 . Energy Discharges 1 | . . 1 . Misfires 1 | . 1 . . Overload Shots . | . . . . Overflow Damage . | . . . . Projectiles . | . . . . Explosions . | . . . . Melee . | . . . . Knockbacks . | . . . . Impact . | . . . . Kinetic . | . . . . Secondary . | . . . . Self-Inflicted Damage 1 | . . . 1 Shots 1 | . . . 1 Rammed . | . . . . Targets Rammed 3 | . . . 3 Kicked 3 | . . . 3 Crushed . | . . . . Highest Temperature 324 | 60 324 246 198 Average Temperature 100 | 30 121 104 73 Received Heat Transfer 1122 | . 246 75 801 Effects 3 | . 3 . . Energy Bleed 1 | . 1 . . Interference 2 | . 2 . . Siege Activations . | . . . . Robots Corrupted . | . . . . Combat Hostiles . | . . . . Parts Fried . | . . . . Impact Corruptions . | . . . . Robots Melted . | . . . . Combat Hostiles . | . . . . Parts Melted 5 | 1 4 . . Heat Transferred 2907 | 74 1223 359 1251 Parts Sabotaged . | . . . . Parts Stolen . | . . . . Parts Stripped . | . . . . Power Chain Reactions . | . . . . Alert | -11 -10 -10 -9 ------- Run | Yrd Mat Min Mat Peak Influence 504 | 5 250 171 504 Initial 66 | . 3 31 66 Average 156 | 2 110 105 259 Maximum Alert Level 2 | . 1 . 2 Low Security (%) 68 | 100 80 100 31 Level 1 25 | . 19 . 50 Level 2 6 | . . . 17 Level 3 . | . . . . Level 4 . | . . . . Level 5 . | . . . . High Security . | . . . . Max Security . | . . . . Squads Dispatched 6 | . 3 . 3 Investigation 3 | . 1 . 2 Extermination . | . . . . Reinforcement 3 | . 2 . 1 Assault . | . . . . Garrison . | . . . . Intercept . | . . . . Searches Triggered . | . . . . Construction Impeded . | . . . . Haulers Reinforced . | . . . . Active Scanning Responses . | . . . . Cargo Convoy Interrupts . | . . . . Stealth | -11 -10 -10 -9 --------- Run | Yrd Mat Min Mat Distress Signals 9 | . 2 1 6 Communications Jammed . | . . . . Distress Signals . | . . . . Times Spotted 59 | . 18 6 35 Peak Tracking Total 7 | . 5 3 7 Tactical Retreats 6 | . 3 1 2 Traps | -11 -10 -10 -9 ------- Run | Yrd Mat Min Mat Traps Triggered 4 | . 3 . 1 Indirectly . | . . . . Trap Hack Attempts . | . . . . Triggered . | . . . . Disarmed 1 | . 1 . . Reprogrammed . | . . . . Reused . | . . . . Traps Extracted . | . . . . Installed . | . . . . Triggered . | . . . . Machines | -11 -10 -10 -9 ---------- Run | Yrd Mat Min Mat Machines Disabled . | . . . . Max in Single Turn . | . . . . Machines Repaired . | . . . . Machines Dismantled . | . . . . Machines Sabotaged . | . . . . Overloaded Fab Kills . | . . . . Hacking | -11 -10 -10 -9 --------- Run | Yrd Mat Min Mat Machines Accessed 7 | . 4 1 2 Terminals 7 | . 4 1 2 Fabricators . | . . . . Repair Stations . | . . . . Recycling Units . | . . . . Scanalyzers . | . . . . Garrison Access . | . . . . Total Hacks 22 | . 12 3 7 Successful 13 | . 6 2 5 Failed 9 | . 6 1 2 Catastrophic 1 | . 1 . . Database Lockouts . | . . . . Manual 19 | . 10 3 6 Terminals 22 | . 12 3 7 Fabricators . | . . . . Repair Stations . | . . . . Recycling Units . | . . . . Scanalyzers . | . . . . Garrison Access . | . . . . Terminal Hacks 5 | . 3 . 2 Prototype ID Bank 1 | . . . 1 Scanalyzer Index 2 | . 1 . 1 Disarm Traps 1 | . 1 . . Zone Layout 1 | . 1 . . Fabricator Hacks . | . . . . Repair Station Hacks . | . . . . Recycling Unit Hacks . | . . . . Scanalyzer . | . . . . Garrison Access Hacks . | . . . . Unauthorized Hacks 8 | . 3 2 3 Terminals 8 | . 3 2 3 Botnet 5 | . 2 1 2 Operators 3 | . 1 1 1 Fabricators . | . . . . Repair Stations . | . . . . Recycling Units . | . . . . Scanalyzers . | . . . . Garrison Access . | . . . . Data Cores Recovered . | . . . . Used . | . . . . Hacking Detections 6 | . 4 . 2 Full Trace Events 2 | . 1 . 1 Feedback Events . | . . . . Feedback Blocked . | . . . . Robot Schematics Acquired . | . . . . Robots Built . | . . . . Authchips . | . . . . Time . | . . . . Total Robot Build Rating . | . . . . Part Schematics Acquired . | . . . . Parts Built . | . . . . Authchips . | . . . . Time . | . . . . Total Part Build Rating . | . . . . Parts Repaired . | . . . . Time . | . . . . Parts Recycled . | . . . . Recycled Matter . | . . . . Retrieved Matter . | . . . . Retrieved Components . | . . . . Parts Scanalyzed . | . . . . Part Schematics Acquired . | . . . . Parts Damaged . | . . . . Bothacking | -11 -10 -10 -9 ------------ Run | Yrd Mat Min Mat Used RIF Installer . | . . . . Robots Hacked . | . . . . Non-combat . | . . . . Combat . | . . . . Robot Hacks Applied . | . . . . Relay Couplers Released . | . . . . Fabnet Peak Effective % . | . . . . Robots Rewired . | . . . . Allies Hacked . | . . . . Hacks Repelled . | . . . . Allies | -11 -10 -10 -9 -------- Run | Yrd Mat Min Mat Total Allies . | . . . . Largest Group . | . . . . Highest-Rated Group . | . . . . Highest-Rated Ally . | . . . . Total Orders . | . . . . Ally Attacks . | . . . . Total Damage . | . . . . Kills . | . . . . Allies Corrupted . | . . . . Allies Melted . | . . . . Intel | -11 -10 -10 -9 ------- Run | Yrd Mat Min Mat Robot Analysis Total . | . . . . Derelict Logs Recovered 1 | . . 1 . Drone Launches . | . . . . Drone Recoveries . | . . . . Exploration | -11 -10 -10 -9 ------------- Run | Yrd Mat Min Mat Turns Passed 1440 | 73 561 301 505 Spaces Moved 670 | 41 281 149 199 Core 15 | 12 . . 3 Treads 244 | 29 209 6 . Legs 411 | . 72 143 196 Wheels . | . . . . Hover . | . . . . Flight . | . . . . Fastest Speed 50 | 50 120 120 120 Average Speed 134 | 127 149 122 122 Slowest Speed 200 | 160 160 190 200 Overloaded Moves . | . . . . Propulsion Burnouts . | . . . . Robots Hopped . | . . . . Cave-ins Triggered . | . . . . Exploration Rate (%) 29 | 5 47 40 26 Regions Visited 3 Branch Regions 1 Pre-discovered Areas 1 | . . 1 . Known Exits Taken 2 | . 1 1 . Unknown Exits Taken 1 | 1 . . . Scrap Searched . | . . . . Spaces Dug . | . . . . Terrain Destroyed 34 | . . . 34 Melee . | . . . . Projectile . | . . . . AOE 34 | . . . 34 Terrain Rammed . | . . . . Walls Destroyed . | . . . . Machines Disabled . | . . . . Actions | -11 -10 -10 -9 --------- Run | Yrd Mat Min Mat Total 992 | 58 348 229 357 Wait 90 | . 6 51 33 Move 667 | 40 280 148 199 Hop . | . . . . Pick Up 30 | 9 9 . 12 Fast Attach 1 | . . 1 . Attach 26 | 7 3 . 16 Detach 1 | . . . 1 Swap 12 | . 7 4 1 Drop 5 | . . 3 2 Fire 157 | 2 43 22 90 Melee . | . . . . Ram . | . . . . Kick 3 | . . . 3 Crush . | . . . . Escape Stasis . | . . . . Rewire . | . . . . Trap . | . . . . Miscellaneous . | . . . . Route ------- -11/Scrapyard -10/Materials (discovered 3 exits: *Mat / *Min x2) -10/Mines -9/Materials (discovered 1 exit: *Sto) History --------- Turn | Location | Event 9 | -11/Scrapyard | Discovered new exit (range 15) 74 | -11/Scrapyard | Entered Materials 255 | -10/Materials | Discovered new exit (range 3) 258 | -10/Materials | Identified exit to Mines 311 | -10/Materials | Build established: Mutant 354 | -10/Materials | Discovered new exit (range 3) 557 | -10/Materials | Discovered exit to Mines (range 7) 635 | -10/Materials | Entered Mines 636 | -10/Mines | Assembled infested the area 787 | -10/Mines | Learned location of Mines (-8) 919 | -10/Mines | Discovered new exit (range 15) 935 | -10/Mines | Identified exit to Materials 936 | -10/Mines | Entered Materials 936 | -9/Materials | Evolved 2 slots: Propulsion x2 957 | -9/Materials | Build established: Scavenger-Mutant 1097 | -9/Materials | Discovered new exit (range 12) 1180 | -9/Materials | Identified exit to Storage 1222 | -9/Materials | Lost 4 parts (1p2n1w) 1366 | -9/Materials | Core integrity fell below 50% 1394 | -9/Materials | Lost 6 parts (1p3n2w) 1414 | -9/Materials | Core integrity fell below 20% 1441 | -9/Materials | Destroyed by G-34 Mercenary with Small Laser Last Messages --------------- K-01 Serf cleans the Terminal. K-01 Serf collects debris. G-34 Mercenary heat damages Heat Sink. K-01 Serf cleans the Terminal. G-34 Mercenary destroyed. K-01 Serf collects debris. Acquired 1 matter. K-01 Serf collects debris. Acquired Aluminum Leg. Acquired Ion Engine. K-01 Serf cleans the Terminal. Acquired Aluminum Leg. K-01 Serf cleans the Terminal. Acquired Aluminum Leg. K-01 Serf cleans the Terminal. Sml. Laser destroyed. K-01 Serf cleans the Terminal. Kicked G-34 Mercenary. Kicked G-34 Mercenary out of the way. Kicked S-10 Pest out of the way. Map ----- +----------------------------------------------------+ | ????????????????????????????????????????????????? | | ????????????????????????????????????????????????? | | ????????????????????????????????????????????????? | | ????????????????????????????????????????????????? | | ????????????????????????????????????????????????? | | ????????????????????????????????????????????????? | | ????????????????????????????????????????????????? | | ????????????????????????????????????????????????? | | ????????????????????????????????????????????????? | | ????????????????????????????????????????????????? | | ??????????????????????????????????######????????? | | ?????????????????????????????????? #????????? | | ??????????????????????????????????? #????????? | | ??????????????????????????????????? #????????? | | ???????????????????????????????????# #????????? | | ???????????????????????????????????# #????????? | | ???????????????????????????????????# #????????? | | ???????????????????????????????????# +????????? | | ???????????????????????????????????# #?????#### | | ???????????????????????????????????# #?????# | | ??????????????????????????????????## ##????# | | ?????????????###################### ######* | | ?????????????# g a o % %! | | ?????????????# ss T ###### | | ?????????? sg #????## | | ??????????????#/########@########## % #?????# | | ????????????????????# s !#??????# #####?????# | | ????????????????????# #??????# #?????????# | | ????????????????????# """" #??????# #?????????# | | ????????????????????# """" #??????# #?????????# | | ????????????????????# """" #??????# #?????????# | | ????????????????????# #??????# #?????????+ | | ????????????????????########??????# #?????????# | | ??????????????????????????????????# #?????????# | | ??????????????????????????????????# #????????? | | ??????????????????????????????????? ??????????? | | ??????????????????????????????????? ????????????? | | ??????????????????????????????????? ????????????? | | ??????????????????????????????????? ????????????? | | ??????????????????????????????????? ????????????? | | ??????????????????????????????????? ????????????? | | ??????????????????????????????????? ????????????? | | ????????????????????????????????????????????????? | | ????????????????????????????????????????????????? | | ????????????????????????????????????????????????? | | ????????????????????????????????????????????????? | | ????????????????????????????????????????????????? | | ????????????????????????????????????????????????? | | ????????????????????????????????????????????????? | | ????????????????????????????????????????????????? | +----------------------------------------------------+ Best States ------------- Heat Dissipation 28 Energy Generation 14 Energy Capacity 250 Matter Stores 300 Matter Capacity 300 Sight Range 16 Terrain Scan Density 10 Evasion (%) 55 Recoil Reduction 2 Item Schematics ----------------- None Robot Schematics ------------------ None Fabricated ------------ Nothing Alien Tech Used ----------------- None Achievements -------------- None Challenges ------------ None Game ------ Seed ThiefSkeletonRifle Manual? 0 Play Time 00:16:33 Cumulative 4.1 hours Start 2025.05.05 @ 14:27:56 End 2025.05.05 @ 14:44:15 Sessions 1 Manual Loads 0 Difficulty Rogue Special Mode None Game No. 15 Rogue 15 Adventurer 0 Explorer 0 Win Type - Total 0 Types 0/0/0/0/0/0/0/0/0 Lore% 8 Gallery% 11 Achievement% 13 Wizard Run 0 Options --------- Layout 1 ASCII 0 Keyboard 0 Movement Mouse Keybinds 0 Fullscreen 1 Font 24/Smallcaps Map View 50x35 Zoom Use 0% Tactical HUD 0 Map Filters NONE Filters NONE Steam 1 RUN: 7db90c84-b43f-431b-bbb4-b7f4551216a0